[Event "Titled Tuesday Blitz June 6 Late 2023"]
[White "WindWhistler11"]
[Black "Kleiman, Jake"]
[BlackFideId "2020041"]
[WhiteElo "2561"]
[BlackElo "2691"]
[Result "1-0"]
[Round "9"]
[TimeControl "180+2"]
[Date "2023.06.07"]
[WhiteClock "0:00:08"]
[BlackClock "0:00:01"]
[Board "37"]

1. Nf3 {[%clk 0:02:56]}  Nf6 {[%clk 0:02:58]} 2. g3 {[%clk 0:02:56]}  e6 {[%clk 0:02:59]} 3. d3 {[%clk 0:02:57]}  d5 {[%clk 0:03:00]} 4. Nbd2 {[%clk 0:02:57]}  g6 {[%clk 0:03:01]} 5. e4 {[%clk 0:02:58]}  Bg7 {[%clk 0:03:01]} 6. Bg2 {[%clk 0:02:58]}  O-O {[%clk 0:03:02]} 7. O-O {[%clk 0:02:58]}  c5 {[%clk 0:03:02]} 8. Re1 {[%clk 0:02:57]}  Nc6 {[%clk 0:03:03]} 9. h4 {[%clk 0:02:45]}  a5 {[%clk 0:03:03]} 10. Qe2 {[%clk 0:02:44]}  a4 {[%clk 0:03:01]} 11. a3 {[%clk 0:02:44]}  b6 {[%clk 0:03:01]} 12. Nf1 {[%clk 0:02:30]}  dxe4 {[%clk 0:02:58]} 13. dxe4 {[%clk 0:02:26]}  Ba6 {[%clk 0:02:58]} 14. c4 {[%clk 0:02:14]}  Ng4 {[%clk 0:02:39]} 15. Bf4 {[%clk 0:02:03]}  Nge5 {[%clk 0:02:34]} 16. Bxe5 {[%clk 0:01:58]}  Nxe5 {[%clk 0:02:34]} 17. Nxe5 {[%clk 0:01:52]}  Bxe5 {[%clk 0:02:35]} 18. Rad1 {[%clk 0:01:47]}  Qc7 {[%clk 0:02:28]} 19. f4 {[%clk 0:01:43]}  Bd4+ {[%clk 0:02:26]} 20. Kh1 {[%clk 0:01:44]}  Rad8 {[%clk 0:02:27]} 21. Nh2 {[%clk 0:01:41]}  Rd7 {[%clk 0:02:18]} 22. h5 {[%clk 0:01:39]}  Rfd8 {[%clk 0:02:18]} 23. e5 {[%clk 0:01:32]}  Bb7 {[%clk 0:01:46]} 24. Ng4 {[%clk 0:01:27]}  Kg7 {[%clk 0:01:43]} 25. h6+ {[%clk 0:01:23]}  Kh8 {[%clk 0:01:41]} 26. Nf6 {[%clk 0:01:24]}  Re7 {[%clk 0:01:36]} 27. Kh2 {[%clk 0:01:15]}  Bc6 {[%clk 0:01:34]} 28. Bh3 {[%clk 0:01:06]}  Qc8 {[%clk 0:01:30]} 29. Rd2 {[%clk 0:01:03]}  Rb7 {[%clk 0:01:17]} 30. Red1 {[%clk 0:00:57]}  b5 {[%clk 0:01:14]} 31. cxb5 {[%clk 0:00:54]}  Rxb5 {[%clk 0:01:12]} 32. Qg4 {[%clk 0:00:53]}  Rxb2 {[%clk 0:00:53]} 33. Qg5 {[%clk 0:00:32]}  Rxd2+ {[%clk 0:00:35]} 34. Rxd2 {[%clk 0:00:30]}  Bg1+ {[%clk 0:00:35]} 35. Kxg1 {[%clk 0:00:29]}  Rxd2 {[%clk 0:00:36]} 36. Nd7 {[%clk 0:00:21]}  Kg8 {[%clk 0:00:12]} 37. Qf6 {[%clk 0:00:17]}  Qf8 {[%clk 0:00:02]} 38. Nxf8 {[%clk 0:00:16]}  Kxf8 {[%clk 0:00:02]} 39. Qh8+ {[%clk 0:00:12]}  Ke7 {[%clk 0:00:02]} 40. Qxh7 {[%clk 0:00:12]}  Rd1+ {[%clk 0:00:01]} 41. Kf2 {[%clk 0:00:12]}  Rd2+ {[%clk 0:00:02]} 42. Ke1 {[%clk 0:00:11]}  Rh2 {[%clk 0:00:01]} 43. Qg7 {[%clk 0:00:08]}  Bf3 {[%clk 0:00:02]} 44. h7 {[%clk 0:00:07]}  Re2+ {[%clk 0:00:01]} 45. Kf1 {[%clk 0:00:08]} 1-0


[Site "https://www.chess.com"]

[Event "Titled Tuesday Blitz June 6 Late 2023"]
[White "Shuvalova, Polina"]
[Black "Pinheiro, Iung Alicio de O."]
[WhiteFideId "24171760"]
[BlackFideId "2104350"]
[WhiteElo "2281"]
[BlackElo "2283"]
[Result "0-1"]
[Round "9"]
[TimeControl "180+2"]
[Date "2023.06.07"]
[WhiteClock "0:00:02"]
[BlackClock "0:00:08"]
[Board "39"]

1. e4 {[%clk 0:03:00]}  e5 {[%clk 0:02:54]} 2. Nf3 {[%clk 0:03:00]}  Nc6 {[%clk 0:02:54]} 3. Nc3 {[%clk 0:03:00]}  Nf6 {[%clk 0:02:53]} 4. Bc4 {[%clk 0:02:59]}  Nxe4 {[%clk 0:02:45]} 5. Nxe4 {[%clk 0:02:53]}  d5 {[%clk 0:02:45]} 6. Bb5 {[%clk 0:02:54]}  dxe4 {[%clk 0:02:39]} 7. Nxe5 {[%clk 0:02:54]}  Qd5 {[%clk 0:02:30]} 8. Nxc6 {[%clk 0:02:35]}  Qxb5 {[%clk 0:02:21]} 9. Nd4 {[%clk 0:02:35]}  Qg5 {[%clk 0:02:15]} 10. Rg1 {[%clk 0:02:13]}  Bg4 {[%clk 0:02:05]} 11. f3 {[%clk 0:02:08]}  Qh4+ {[%clk 0:01:30]} 12. Kf1 {[%clk 0:02:04]}  Bc5 {[%clk 0:01:22]} 13. c3 {[%clk 0:01:59]}  Bxd4 {[%clk 0:01:17]} 14. Qa4+ {[%clk 0:01:54]}  c6 {[%clk 0:01:08]} 15. Qxd4 {[%clk 0:01:53]}  exf3 {[%clk 0:01:07]} 16. Qe4+ {[%clk 0:01:35]}  Kf8 {[%clk 0:00:50]} 17. b3 {[%clk 0:01:35]}  Qh5 {[%clk 0:00:30]} 18. Ba3+ {[%clk 0:01:33]}  Kg8 {[%clk 0:00:30]} 19. Re1 {[%clk 0:01:29]}  h6 {[%clk 0:00:27]} 20. gxf3 {[%clk 0:01:26]}  Bxf3 {[%clk 0:00:20]} 21. Qf4 {[%clk 0:01:19]}  Kh7 {[%clk 0:00:15]} 22. Re3 {[%clk 0:01:16]}  Bd5 {[%clk 0:00:14]} 23. Reg3 {[%clk 0:01:15]}  g5 {[%clk 0:00:14]} 24. Qf5+ {[%clk 0:01:12]}  Qg6 {[%clk 0:00:14]} 25. Qxg6+ {[%clk 0:01:09]}  Kxg6 {[%clk 0:00:15]} 26. h4 {[%clk 0:01:09]}  f6 {[%clk 0:00:15]} 27. c4 {[%clk 0:01:08]}  Be4 {[%clk 0:00:15]} 28. d3 {[%clk 0:01:07]}  Bf5 {[%clk 0:00:15]} 29. hxg5 {[%clk 0:00:53]}  hxg5 {[%clk 0:00:15]} 30. Bd6 {[%clk 0:00:48]}  Rad8 {[%clk 0:00:14]} 31. c5 {[%clk 0:00:48]}  Rh2 {[%clk 0:00:13]} 32. a4 {[%clk 0:00:30]}  Re8 {[%clk 0:00:13]} 33. Rxg5+ {[%clk 0:00:28]}  fxg5 {[%clk 0:00:11]} 34. Bxh2 {[%clk 0:00:29]}  Bxd3+ {[%clk 0:00:12]} 35. Kf2 {[%clk 0:00:29]}  Re2+ {[%clk 0:00:12]} 36. Kg3 {[%clk 0:00:30]}  Be4 {[%clk 0:00:12]} 37. Kh3 {[%clk 0:00:21]}  Kh5 {[%clk 0:00:08]} 38. Bd6 {[%clk 0:00:13]}  Re3+ {[%clk 0:00:05]} 39. Rg3 {[%clk 0:00:11]}  g4+ {[%clk 0:00:04]} 40. Kh2 {[%clk 0:00:12]}  Re2+ {[%clk 0:00:05]} 41. Kg1 {[%clk 0:00:13]}  Bf3 {[%clk 0:00:04]} 42. Kf1 {[%clk 0:00:09]}  Rb2 {[%clk 0:00:05]} 43. Ke1 {[%clk 0:00:04]}  Rxb3 {[%clk 0:00:05]} 44. Kf2 {[%clk 0:00:05]}  Ra3 {[%clk 0:00:05]} 45. Rg1 {[%clk 0:00:05]}  Ra2+ {[%clk 0:00:05]} 46. Ke3 {[%clk 0:00:05]}  Rxa4 {[%clk 0:00:05]} 47. Rc1 {[%clk 0:00:05]}  Ra3+ {[%clk 0:00:05]} 48. Kf4 {[%clk 0:00:05]}  Kg6 {[%clk 0:00:04]} 49. Kg3 {[%clk 0:00:05]}  a5 {[%clk 0:00:03]} 50. Kf4 {[%clk 0:00:05]}  a4 {[%clk 0:00:04]} 51. Rb1 {[%clk 0:00:05]}  Rb3 {[%clk 0:00:04]} 52. Ra1 {[%clk 0:00:05]}  a3 {[%clk 0:00:05]} 53. Be5 {[%clk 0:00:05]}  Bd5 {[%clk 0:00:04]} 54. Bd4 {[%clk 0:00:05]}  Rf3+ {[%clk 0:00:05]} 55. Ke5 {[%clk 0:00:05]}  Rd3 {[%clk 0:00:05]} 56. Rg1 {[%clk 0:00:03]}  a2 {[%clk 0:00:06]} 57. Rxg4+ {[%clk 0:00:03]}  Kh5 {[%clk 0:00:07]} 58. Rg1 {[%clk 0:00:04]}  Rb3 {[%clk 0:00:07]} 59. Ra1 {[%clk 0:00:04]}  Rb1 {[%clk 0:00:08]} 60. Bc3 {[%clk 0:00:04]}  Rb3 {[%clk 0:00:08]} 61. Kd4 {[%clk 0:00:04]}  Rb5 {[%clk 0:00:07]} 62. Bd2 {[%clk 0:00:03]}  Kg4 {[%clk 0:00:08]} 63. Bc3 {[%clk 0:00:03]}  Kf3 {[%clk 0:00:08]} 64. Rf1+ {[%clk 0:00:03]}  Ke2 {[%clk 0:00:08]} 65. Re1+ {[%clk 0:00:04]}  Kf2 {[%clk 0:00:07]} 66. Ra1 {[%clk 0:00:05]}  Bb3 {[%clk 0:00:06]} 67. Be1+ {[%clk 0:00:03]}  Ke2 {[%clk 0:00:06]} 68. Bc3 {[%clk 0:00:04]}  Bd5 {[%clk 0:00:05]} 69. Re1+ {[%clk 0:00:04]}  Kf2 {[%clk 0:00:04]} 70. Ra1 {[%clk 0:00:05]}  Rb3 {[%clk 0:00:04]} 71. Be1+ {[%clk 0:00:05]}  Kf3 {[%clk 0:00:03]} 72. Bc3 {[%clk 0:00:06]}  Ra3 {[%clk 0:00:03]} 73. Rf1+ {[%clk 0:00:06]}  Kg4 {[%clk 0:00:02]} 74. Rg1+ {[%clk 0:00:06]}  Kf5 {[%clk 0:00:03]} 75. Rf1+ {[%clk 0:00:06]}  Ke6 {[%clk 0:00:04]} 76. Re1+ {[%clk 0:00:07]}  Kd7 {[%clk 0:00:05]} 77. Ra1 {[%clk 0:00:07]}  Ra8 {[%clk 0:00:05]} 78. Re1 {[%clk 0:00:07]}  Rg8 {[%clk 0:00:06]} 79. Ra1 {[%clk 0:00:04]}  Rg4+ {[%clk 0:00:07]} 80. Kd3 {[%clk 0:00:05]}  Rg3+ {[%clk 0:00:07]} 81. Kd2 {[%clk 0:00:05]}  Ke6 {[%clk 0:00:08]} 82. Re1+ {[%clk 0:00:05]}  Kf5 {[%clk 0:00:08]} 83. Re5+ {[%clk 0:00:05]}  Kg4 {[%clk 0:00:08]} 84. Re1 {[%clk 0:00:05]}  Rg2+ {[%clk 0:00:08]} 85. Kd3 {[%clk 0:00:05]}  Rg3+ {[%clk 0:00:08]} 86. Kd2 {[%clk 0:00:05]}  Rf3 {[%clk 0:00:08]} 87. Rg1+ {[%clk 0:00:06]}  Kf5 {[%clk 0:00:08]} 88. Re1 {[%clk 0:00:06]}  Be4 {[%clk 0:00:08]} 89. Ra1 {[%clk 0:00:06]}  Bb1 {[%clk 0:00:08]} 90. Bb2 {[%clk 0:00:04]}  Ke4 {[%clk 0:00:08]} 91. Bg7 {[%clk 0:00:03]}  Kd5 {[%clk 0:00:08]} 92. Bb2 {[%clk 0:00:02]}  Kxc5 {[%clk 0:00:08]} 93. Ba3+ {[%clk 0:00:02]}  Kc4 {[%clk 0:00:08]} 94. Bb2 {[%clk 0:00:02]}  b5 {[%clk 0:00:08]} 95. Be5 {[%clk 0:00:02]}  c5 {[%clk 0:00:08]} 96. Kc1 {[%clk 0:00:03]}  Rf2 {[%clk 0:00:08]} 97. Bg3 {[%clk 0:00:03]}  Rg2 {[%clk 0:00:08]} 98. Bf4 {[%clk 0:00:03]}  b4 {[%clk 0:00:08]} 99. Be3 {[%clk 0:00:03]}  b3 {[%clk 0:00:08]} 100. Kd1 {[%clk 0:00:03]}  b2 {[%clk 0:00:08]} 101. Bc1 {[%clk 0:00:01]}  bxa1=Q {[%clk 0:00:07]} 102. Ke1 {[%clk 0:00:01]}  Qe5+ {[%clk 0:00:07]} 103. Kf1 {[%clk 0:00:02]}  Qe2# {[%clk 0:00:08]} 0-1


[Site "https://www.chess.com"]

[Event "Titled Tuesday Blitz June 6 Late 2023"]
[White "Goryachkina, Aleksandra"]
[Black "Zhurbinsky, David"]
[WhiteFideId "4147103"]
[BlackFideId "2072904"]
[WhiteElo "2471"]
[BlackElo "2661"]
[Result "1-0"]
[Round "9"]
[TimeControl "180+2"]
[Date "2023.06.07"]
[WhiteClock "0:00:39"]
[BlackClock "0:00:03"]
[Board "41"]

1. e4 {[%clk 0:02:59]}  e5 {[%clk 0:02:56]} 2. Nf3 {[%clk 0:02:59]}  Nc6 {[%clk 0:02:55]} 3. Bc4 {[%clk 0:02:59]}  Bc5 {[%clk 0:02:55]} 4. c3 {[%clk 0:02:58]}  Nf6 {[%clk 0:02:55]} 5. d3 {[%clk 0:02:58]}  O-O {[%clk 0:02:52]} 6. O-O {[%clk 0:02:56]}  d6 {[%clk 0:02:51]} 7. h3 {[%clk 0:02:52]}  a6 {[%clk 0:02:49]} 8. Bg5 {[%clk 0:02:48]}  h6 {[%clk 0:02:49]} 9. Bh4 {[%clk 0:02:48]}  g5 {[%clk 0:02:20]} 10. Bg3 {[%clk 0:02:46]}  Nh5 {[%clk 0:02:16]} 11. Kh2 {[%clk 0:02:40]}  Nf4 {[%clk 0:02:09]} 12. d4 {[%clk 0:02:38]}  Bb6 {[%clk 0:02:05]} 13. Na3 {[%clk 0:02:17]}  Qf6 {[%clk 0:02:02]} 14. Nc2 {[%clk 0:02:12]}  g4 {[%clk 0:01:46]} 15. Nh4 {[%clk 0:01:32]}  gxh3 {[%clk 0:01:34]} 16. gxh3 {[%clk 0:01:32]}  Nxh3 {[%clk 0:01:11]} 17. Ne3 {[%clk 0:01:07]}  Nf4 {[%clk 0:00:30]} 18. Rg1 {[%clk 0:01:00]}  Kh8 {[%clk 0:00:30]} 19. Nhf5 {[%clk 0:00:58]}  Bxf5 {[%clk 0:00:21]} 20. Nxf5 {[%clk 0:00:58]}  Ng6 {[%clk 0:00:07]} 21. Qh5 {[%clk 0:00:50]}  Nf4 {[%clk 0:00:03]} 22. Bxf4 {[%clk 0:00:40]}  exf4 {[%clk 0:00:04]} 23. Rg7 {[%clk 0:00:39]}  Qxg7 {[%clk 0:00:03]} 24. Nxg7 {[%clk 0:00:39]}  Kxg7 {[%clk 0:00:04]} 25. Rg1+ {[%clk 0:00:38]}  Kh7 {[%clk 0:00:03]} 26. Qf5+ {[%clk 0:00:38]}  Kh8 {[%clk 0:00:02]} 27. Qf6+ {[%clk 0:00:38]}  Kh7 {[%clk 0:00:03]} 28. Qg7# {[%clk 0:00:39]} 1-0


[Site "https://www.chess.com"]

[Event "Titled Tuesday Blitz June 6 Late 2023"]
[White "Wagner, Dennis"]
[Black "Krsnik Cohar, Ivan Vihor"]
[WhiteFideId "24650684"]
[BlackFideId "14520044"]
[WhiteElo "2478"]
[BlackElo "2414"]
[Result "1-0"]
[Round "9"]
[TimeControl "180+2"]
[Date "2023.06.07"]
[WhiteClock "0:01:01"]
[BlackClock "0:00:23"]
[Board "44"]

1. d4 {[%clk 0:03:00]}  Nf6 {[%clk 0:02:59]} 2. Nf3 {[%clk 0:03:01]}  e6 {[%clk 0:03:00]} 3. c4 {[%clk 0:03:01]}  c5 {[%clk 0:03:01]} 4. g3 {[%clk 0:02:57]}  cxd4 {[%clk 0:02:57]} 5. Nxd4 {[%clk 0:02:57]}  Nc6 {[%clk 0:02:58]} 6. Bg2 {[%clk 0:02:57]}  Bb4+ {[%clk 0:02:58]} 7. Bd2 {[%clk 0:02:49]}  Qb6 {[%clk 0:02:52]} 8. Nb3 {[%clk 0:02:44]}  O-O {[%clk 0:02:51]} 9. O-O {[%clk 0:02:43]}  d5 {[%clk 0:02:48]} 10. Bxb4 {[%clk 0:02:25]}  Qxb4 {[%clk 0:02:44]} 11. cxd5 {[%clk 0:02:23]}  exd5 {[%clk 0:02:45]} 12. Qd2 {[%clk 0:02:07]}  Bf5 {[%clk 0:02:19]} 13. Qxb4 {[%clk 0:02:04]}  Nxb4 {[%clk 0:02:20]} 14. Nd4 {[%clk 0:02:04]}  Be4 {[%clk 0:02:06]} 15. Nc3 {[%clk 0:02:03]}  Rfd8 {[%clk 0:01:50]} 16. Rfd1 {[%clk 0:01:59]}  Rac8 {[%clk 0:01:44]} 17. Rac1 {[%clk 0:01:59]}  Kf8 {[%clk 0:01:35]} 18. f3 {[%clk 0:01:58]}  Bg6 {[%clk 0:01:34]} 19. Bh3 {[%clk 0:01:58]}  Rc4 {[%clk 0:01:24]} 20. b3 {[%clk 0:01:45]}  Rc5 {[%clk 0:01:14]} 21. Ncb5 {[%clk 0:01:32]}  Rxc1 {[%clk 0:01:11]} 22. Rxc1 {[%clk 0:01:33]}  a6 {[%clk 0:01:06]} 23. a3 {[%clk 0:01:11]}  Nd3 {[%clk 0:00:48]} 24. exd3 {[%clk 0:01:11]}  axb5 {[%clk 0:00:49]} 25. Bf1 {[%clk 0:01:10]}  b4 {[%clk 0:00:35]} 26. axb4 {[%clk 0:01:09]}  Rd7 {[%clk 0:00:36]} 27. Rc8+ {[%clk 0:01:03]}  Ke7 {[%clk 0:00:33]} 28. Bh3 {[%clk 0:01:02]}  Rd8 {[%clk 0:00:22]} 29. Rc7+ {[%clk 0:01:03]}  Kd6 {[%clk 0:00:23]} 30. Nb5+ {[%clk 0:01:02]}  Ke5 {[%clk 0:00:23]} 31. d4# {[%clk 0:01:01]} 1-0


[Site "https://www.chess.com"]

[Event "Titled Tuesday Blitz June 6 Late 2023"]
[White "Hajiyev, Kanan"]
[Black "Papp, Levente"]
[WhiteFideId "13404148"]
[BlackFideId "751243"]
[WhiteElo "2115"]
[BlackElo "2380"]
[Result "0-1"]
[Round "9"]
[TimeControl "180+2"]
[Date "2023.06.07"]
[WhiteClock "0:00:01"]
[BlackClock "0:00:26"]
[Board "45"]

1. d4 {[%clk 0:02:39]}  e6 {[%clk 0:02:59]} 2. c4 {[%clk 0:02:38]}  b6 {[%clk 0:02:59]} 3. Nf3 {[%clk 0:02:35]}  Bb7 {[%clk 0:02:58]} 4. g3 {[%clk 0:02:35]}  Nf6 {[%clk 0:02:55]} 5. Bg2 {[%clk 0:02:36]}  Be7 {[%clk 0:02:45]} 6. O-O {[%clk 0:02:35]}  O-O {[%clk 0:02:45]} 7. Nc3 {[%clk 0:02:30]}  Ne4 {[%clk 0:02:44]} 8. Bd2 {[%clk 0:02:30]}  f5 {[%clk 0:02:41]} 9. Rc1 {[%clk 0:02:27]}  Bf6 {[%clk 0:02:39]} 10. Be1 {[%clk 0:02:25]}  a5 {[%clk 0:02:35]} 11. d5 {[%clk 0:02:23]}  Na6 {[%clk 0:02:33]} 12. Nxe4 {[%clk 0:02:19]}  fxe4 {[%clk 0:02:33]} 13. Nd4 {[%clk 0:02:19]}  exd5 {[%clk 0:02:29]} 14. cxd5 {[%clk 0:02:12]}  Bxd5 {[%clk 0:02:27]} 15. Bc3 {[%clk 0:01:39]}  Nc5 {[%clk 0:02:24]} 16. Nf5 {[%clk 0:01:39]}  Bxa2 {[%clk 0:02:09]} 17. g4 {[%clk 0:01:15]}  Bxc3 {[%clk 0:01:52]} 18. Rxc3 {[%clk 0:01:12]}  Be6 {[%clk 0:01:53]} 19. Ne3 {[%clk 0:01:01]}  Qg5 {[%clk 0:01:34]} 20. h3 {[%clk 0:00:58]}  h5 {[%clk 0:01:32]} 21. f4 {[%clk 0:00:37]}  exf3 {[%clk 0:01:33]} 22. Bxf3 {[%clk 0:00:33]}  Rae8 {[%clk 0:01:31]} 23. Kh2 {[%clk 0:00:17]}  hxg4 {[%clk 0:01:29]} 24. Nxg4 {[%clk 0:00:15]}  Bxg4 {[%clk 0:01:23]} 25. Bxg4 {[%clk 0:00:10]}  Qe5+ {[%clk 0:01:18]} 26. Kg2 {[%clk 0:00:06]}  Qe4+ {[%clk 0:00:59]} 27. Bf3 {[%clk 0:00:06]}  Qg6+ {[%clk 0:00:57]} 28. Bg4 {[%clk 0:00:06]}  Rxf1 {[%clk 0:00:53]} 29. Qxf1 {[%clk 0:00:07]}  Rf8 {[%clk 0:00:53]} 30. Rf3 {[%clk 0:00:08]}  Qc6 {[%clk 0:00:54]} 31. Kh2 {[%clk 0:00:07]}  Qd6+ {[%clk 0:00:54]} 32. Kg2 {[%clk 0:00:07]}  Re8 {[%clk 0:00:41]} 33. Rf5 {[%clk 0:00:03]}  Ne4 {[%clk 0:00:40]} 34. Qf3 {[%clk 0:00:02]}  Nf6 {[%clk 0:00:38]} 35. Rg5 {[%clk 0:00:01]}  Re5 {[%clk 0:00:26]} 0-1


[Site "https://www.chess.com"]

[Event "Titled Tuesday Blitz June 6 Late 2023"]
[White "Fiorito, Joaquin"]
[Black "Liu, Casper"]
[WhiteFideId "180173"]
[BlackFideId "1454153"]
[WhiteElo "2199"]
[BlackElo "2221"]
[Result "0-1"]
[Round "9"]
[TimeControl "180+2"]
[Date "2023.06.07"]
[WhiteClock "0:00:03"]
[BlackClock "0:00:21"]
[Board "46"]

1. d4 {[%clk 0:03:00]}  Nf6 {[%clk 0:02:52]} 2. c4 {[%clk 0:03:00]}  g6 {[%clk 0:02:52]} 3. Nc3 {[%clk 0:03:00]}  d5 {[%clk 0:02:53]} 4. Nf3 {[%clk 0:03:01]}  Bg7 {[%clk 0:02:53]} 5. h4 {[%clk 0:03:01]}  h5 {[%clk 0:02:53]} 6. Bg5 {[%clk 0:03:01]}  Ne4 {[%clk 0:02:53]} 7. Nxd5 {[%clk 0:02:55]}  Nxg5 {[%clk 0:02:51]} 8. hxg5 {[%clk 0:02:56]}  c6 {[%clk 0:02:51]} 9. Nc3 {[%clk 0:02:56]}  Bg4 {[%clk 0:02:51]} 10. e3 {[%clk 0:02:55]}  Qa5 {[%clk 0:02:50]} 11. Be2 {[%clk 0:02:52]}  Bxf3 {[%clk 0:02:49]} 12. Bxf3 {[%clk 0:02:53]}  Qxg5 {[%clk 0:02:49]} 13. Qb3 {[%clk 0:02:53]}  b6 {[%clk 0:02:47]} 14. c5 {[%clk 0:02:51]}  O-O {[%clk 0:02:30]} 15. cxb6 {[%clk 0:02:51]}  axb6 {[%clk 0:02:28]} 16. Qxb6 {[%clk 0:02:48]}  Qf6 {[%clk 0:02:16]} 17. O-O {[%clk 0:02:46]}  Rc8 {[%clk 0:02:12]} 18. Ne4 {[%clk 0:02:44]}  Qf5 {[%clk 0:02:06]} 19. Nc5 {[%clk 0:02:33]}  Nd7 {[%clk 0:02:06]} 20. Nxd7 {[%clk 0:02:31]}  Qxd7 {[%clk 0:02:07]} 21. b3 {[%clk 0:02:17]}  e5 {[%clk 0:02:06]} 22. dxe5 {[%clk 0:02:15]}  Bxe5 {[%clk 0:02:06]} 23. Rad1 {[%clk 0:02:14]}  Qe6 {[%clk 0:02:06]} 24. Rd2 {[%clk 0:02:08]}  Bc3 {[%clk 0:02:06]} 25. Rc2 {[%clk 0:02:08]}  Ba5 {[%clk 0:02:05]} 26. Qc5 {[%clk 0:02:05]}  Bc7 {[%clk 0:01:54]} 27. Rfc1 {[%clk 0:02:02]}  Bd6 {[%clk 0:01:46]} 28. Qd4 {[%clk 0:01:57]}  c5 {[%clk 0:01:41]} 29. Qh4 {[%clk 0:01:46]}  Ra7 {[%clk 0:01:34]} 30. Rd1 {[%clk 0:01:45]}  Be7 {[%clk 0:01:33]} 31. Qf4 {[%clk 0:01:39]}  Rd7 {[%clk 0:01:31]} 32. Rxd7 {[%clk 0:01:18]}  Qxd7 {[%clk 0:01:32]} 33. Qc4 {[%clk 0:01:19]}  Rd8 {[%clk 0:01:25]} 34. a4 {[%clk 0:01:19]}  Qf5 {[%clk 0:01:19]} 35. a5 {[%clk 0:01:16]}  g5 {[%clk 0:01:09]} 36. Rc1 {[%clk 0:00:51]}  g4 {[%clk 0:01:08]} 37. Be4 {[%clk 0:00:49]}  Qf6 {[%clk 0:01:08]} 38. a6 {[%clk 0:00:39]}  Rd2 {[%clk 0:01:02]} 39. Rf1 {[%clk 0:00:32]}  Ra2 {[%clk 0:00:36]} 40. b4 {[%clk 0:00:27]}  Qxa6 {[%clk 0:00:30]} 41. b5 {[%clk 0:00:25]}  Qa4 {[%clk 0:00:30]} 42. Qd5 {[%clk 0:00:23]}  Ra1 {[%clk 0:00:23]} 43. g3 {[%clk 0:00:13]}  Rxf1+ {[%clk 0:00:21]} 44. Kxf1 {[%clk 0:00:14]}  Qxb5+ {[%clk 0:00:21]} 45. Bd3 {[%clk 0:00:12]}  Qa4 {[%clk 0:00:21]} 46. Qxh5 {[%clk 0:00:12]}  Qd1+ {[%clk 0:00:21]} 47. Kg2 {[%clk 0:00:12]}  Qxd3 {[%clk 0:00:22]} 48. Qxg4+ {[%clk 0:00:12]}  Kf8 {[%clk 0:00:22]} 49. Qc8+ {[%clk 0:00:12]}  Qd8 {[%clk 0:00:22]} 50. Qc6 {[%clk 0:00:13]}  Qd6 {[%clk 0:00:22]} 51. Qc8+ {[%clk 0:00:13]}  Bd8 {[%clk 0:00:22]} 52. g4 {[%clk 0:00:12]}  Qd5+ {[%clk 0:00:21]} 53. Kg3 {[%clk 0:00:12]}  c4 {[%clk 0:00:21]} 54. f4 {[%clk 0:00:11]}  Qd3 {[%clk 0:00:21]} 55. Qc5+ {[%clk 0:00:11]}  Be7 {[%clk 0:00:21]} 56. Qc8+ {[%clk 0:00:12]}  Kg7 {[%clk 0:00:21]} 57. Kf3 {[%clk 0:00:08]}  c3 {[%clk 0:00:22]} 58. g5 {[%clk 0:00:05]}  c2 {[%clk 0:00:22]} 59. f5 {[%clk 0:00:04]}  Qd1+ {[%clk 0:00:22]} 60. Ke4 {[%clk 0:00:04]}  c1=Q {[%clk 0:00:22]} 61. f6+ {[%clk 0:00:04]}  Bxf6 {[%clk 0:00:22]} 62. gxf6+ {[%clk 0:00:05]}  Kxf6 {[%clk 0:00:23]} 63. Qf5+ {[%clk 0:00:05]}  Ke7 {[%clk 0:00:23]} 64. Qe5+ {[%clk 0:00:04]}  Kd7 {[%clk 0:00:24]} 65. Qf5+ {[%clk 0:00:04]}  Kc6 {[%clk 0:00:24]} 66. Qc8+ {[%clk 0:00:04]}  Kb5 {[%clk 0:00:24]} 67. Qb7+ {[%clk 0:00:05]}  Kc4 {[%clk 0:00:24]} 68. Qc6+ {[%clk 0:00:05]}  Kb3 {[%clk 0:00:25]} 69. Qb5+ {[%clk 0:00:06]}  Kc2 {[%clk 0:00:25]} 70. Qc4+ {[%clk 0:00:05]}  Kd2 {[%clk 0:00:22]} 71. Qd3+ {[%clk 0:00:05]}  Ke1 {[%clk 0:00:22]} 72. Qb5 {[%clk 0:00:03]}  Qb1+ {[%clk 0:00:21]} 0-1


[Site "https://www.chess.com"]

[Event "Titled Tuesday Blitz June 6 Late 2023"]
[White "Balla, Tamas-Kristof"]
[Black "Melian, Juan Sebastian"]
[WhiteFideId "1208497"]
[BlackFideId "3706575"]
[WhiteElo "2334"]
[BlackElo "2092"]
[Result "1/2-1/2"]
[Round "9"]
[TimeControl "180+2"]
[Date "2023.06.07"]
[WhiteClock "0:00:48"]
[BlackClock "0:00:16"]
[Board "50"]

1. e4 {[%clk 0:03:00]}  c5 {[%clk 0:02:57]} 2. Nf3 {[%clk 0:03:00]}  e6 {[%clk 0:02:56]} 3. c3 {[%clk 0:03:01]}  Nf6 {[%clk 0:02:56]} 4. e5 {[%clk 0:03:01]}  Nd5 {[%clk 0:02:56]} 5. d4 {[%clk 0:03:01]}  cxd4 {[%clk 0:02:57]} 6. cxd4 {[%clk 0:03:02]}  d6 {[%clk 0:02:58]} 7. a3 {[%clk 0:03:02]}  Nd7 {[%clk 0:02:54]} 8. Bd3 {[%clk 0:03:00]}  b6 {[%clk 0:02:53]} 9. O-O {[%clk 0:02:55]}  Bb7 {[%clk 0:02:53]} 10. Qe2 {[%clk 0:02:33]}  Be7 {[%clk 0:02:52]} 11. Rd1 {[%clk 0:02:33]}  O-O {[%clk 0:02:51]} 12. Qe4 {[%clk 0:02:32]}  g6 {[%clk 0:02:43]} 13. Bh6 {[%clk 0:02:30]}  Re8 {[%clk 0:02:41]} 14. Qe2 {[%clk 0:02:17]}  Rc8 {[%clk 0:02:25]} 15. Nbd2 {[%clk 0:02:15]}  Bf8 {[%clk 0:02:21]} 16. Bxf8 {[%clk 0:02:12]}  Nxf8 {[%clk 0:02:20]} 17. Ne4 {[%clk 0:01:56]}  Nf4 {[%clk 0:01:49]} 18. Qe3 {[%clk 0:01:54]}  Nxd3 {[%clk 0:01:49]} 19. Rxd3 {[%clk 0:01:52]}  Bxe4 {[%clk 0:01:49]} 20. Qxe4 {[%clk 0:01:53]}  dxe5 {[%clk 0:01:32]} 21. dxe5 {[%clk 0:01:47]}  Qc7 {[%clk 0:01:33]} 22. Rad1 {[%clk 0:01:26]}  Rcd8 {[%clk 0:01:32]} 23. h3 {[%clk 0:01:23]}  Rxd3 {[%clk 0:01:28]} 24. Qxd3 {[%clk 0:01:21]}  Re7 {[%clk 0:01:28]} 25. Qe3 {[%clk 0:01:11]}  Rd7 {[%clk 0:01:27]} 26. Rc1 {[%clk 0:01:07]}  Qd8 {[%clk 0:01:27]} 27. Ng5 {[%clk 0:01:02]}  Rd1+ {[%clk 0:01:24]} 28. Rxd1 {[%clk 0:01:03]}  Qxd1+ {[%clk 0:01:25]} 29. Kh2 {[%clk 0:01:03]}  h6 {[%clk 0:01:05]} 30. Ne4 {[%clk 0:01:03]}  Kg7 {[%clk 0:01:04]} 31. Nf6 {[%clk 0:01:00]}  Nd7 {[%clk 0:00:58]} 32. Ng4 {[%clk 0:01:00]}  g5 {[%clk 0:00:55]} 33. f4 {[%clk 0:00:58]}  h5 {[%clk 0:00:46]} 34. Nf6 {[%clk 0:00:46]}  Nxf6 {[%clk 0:00:14]} 35. exf6+ {[%clk 0:00:47]}  Kxf6 {[%clk 0:00:15]} 36. Qe5+ {[%clk 0:00:47]}  Ke7 {[%clk 0:00:15]} 37. Qxg5+ {[%clk 0:00:48]}  Kd7 {[%clk 0:00:16]} 1/2-1/2


[Site "https://www.chess.com"]